fUSD/lending_fUSD_20260217
["ID","MTS","AMOUNT","RATE_DAILY","PERIOD"]
[405778913,1771300247927,-747.8093786,0.00017471,2]
[405778914,1771300247937,-160.57318335,0.00017623,2]
[405778915,1771300247948,-1077.46733529,0.0001764,2]
[405778916,1771300247959,-1068.57806478,0.0001764,2]
[405778917,1771300247970,-1011.81721857,0.0001764,2]
[405778918,1771300247981,-1073.78468745,0.0001764,2]
[405778919,1771300247992,-1104.32817399,0.0001764,2]
[405778920,1771300248003,-1144.95876463,0.0001764,2]
[405778921,1771300248013,-1112.85859083,0.0001764,2]
[405778922,1771300248024,-1045.02716314,0.0001764,2]
[405778923,1771300248035,-1131.22387929,0.0001764,2]
[405778924,1771300248046,-1000.63475559,0.0001764,2]
[405778925,1771300248056,-1089.19521364,0.0001764,2]
[405778926,1771300248067,-1101.62362552,0.0001764,2]
[405778927,1771300248078,-1086.02156564,0.0001764,2]
[405778928,1771300248088,-1137.03733636,0.0001764,2]
[405778929,1771300248099,-1099.33613851,0.0001764,2]
[405778930,1771300248110,-1025.47311974,0.0001764,2]
[405778931,1771300248121,-1147.01592681,0.0001764,2]
[405778932,1771300248132,-1114.33780212,0.0001764,2]
[405778933,1771300248143,-1005.9147136,0.0001764,2]
[405778934,1771300248153,-1138.62539195,0.0001764,2]
[405778935,1771300248163,-1043.30283327,0.0001764,2]
[405778936,1771300248173,-1068.46715063,0.0001764,2]
[405778937,1771300248185,-1123.40650896,0.0001764,2]
[405778938,1771300248198,-967.92369172,0.0001764,2]
[405778939,1771300248209,-4282.968,0.00017657,7]
[405778940,1771300248219,-9484.086306,0.00017657,7]
[405778941,1771300248230,-150.0,0.00017671,2]
[405778942,1771300248242,-500.0,0.00017671,2]
[405778943,1771300248252,-150.0,0.00017671,2]
[405778944,1771300248263,-160.0,0.000177,7]
[405778945,1771300248274,-150.0,0.00017726,2]
[405778946,1771300248284,-500.0,0.00017726,2]
[405778947,1771300248294,-150.37957529,0.00017726,2]
[405778948,1771300248305,-1000.0,0.00017766,2]
[405778949,1771300248314,-1000.0,0.00017766,2]
[405778950,1771300248324,-1000.0,0.00017766,2]
[405778951,1771300248334,-1000.0,0.00017766,2]
[405778952,1771300248344,-1000.0,0.00017766,2]
[405778953,1771300248355,-1000.0,0.00017766,2]
[405778954,1771300248365,-250.53819001,0.00017781,2]
[405778955,1771300248375,-500.0,0.00017781,2]
[405778956,1771300248386,-500.0,0.00017785,2]
[405778957,1771300248396,-500.0,0.00017807,2]
[405778958,1771300248406,-538.27974596,0.00017807,2]
[405778959,1771300248416,-444.64,0.00017808,2]
[405778960,1771300248426,-500.0,0.00017808,2]
[405778961,1771300248436,-500.0,0.00017808,2]
[405778962,1771300248446,-500.0,0.00017808,2]
[405778963,1771300248456,-595.71508911,0.00017808,2]
[405778964,1771300248466,-500.0,0.00017808,2]
[405778965,1771300248476,-500.0,0.00017808,2]
[405778966,1771300248486,-500.0,0.00017808,2]
[405778967,1771300248497,-500.0,0.00017808,2]
[405778968,1771300248507,-500.0,0.00017808,2]
[405778969,1771300248517,-800.0,0.00017808,2]
[405778970,1771300248528,-250.0,0.00017808,20]
[405778971,1771300248540,-250.0,0.00017808,20]
[405778972,1771300248550,-250.0,0.00017808,20]
[405778973,1771300248560,-250.0,0.00017808,20]
[405778974,1771300248570,-250.0,0.00017808,20]
[405778975,1771300248580,-250.0,0.00017808,20]
[405778976,1771300248590,-250.0,0.00017808,20]
[405778977,1771300248600,-250.0,0.00017808,20]
[405778978,1771300248610,-250.0,0.00017808,20]
[405778979,1771300248621,-250.0,0.00017808,20]
[405778980,1771300248631,-250.0,0.00017808,20]
[405778981,1771300248642,-250.0,0.00017808,20]
[405778982,1771300248652,-250.0,0.00017808,20]
[405778983,1771300248663,-250.0,0.00017808,20]
[405778984,1771300248673,-250.0,0.00017808,20]
[405778985,1771300248683,-211.316222,0.00017808,20]
[405778986,1771300248693,-874.18434,0.0001782,2]
[405778987,1771300248703,-874.18433,0.0001782,2]
[405778988,1771300248713,-874.18433,0.0001782,2]
[405778989,1771300248723,-874.18433,0.0001782,2]
[405778990,1771300248733,-874.18434,0.0001782,2]
[405778991,1771300248743,-874.18434,0.0001782,2]
[405778992,1771300248753,-153.2248447,0.00017835,2]
[405778993,1771300248763,-200.0,0.00017855,2]
[405778994,1771300248773,-200.0,0.00017856,2]
[405778995,1771300248783,-200.0,0.00017856,2]
[405778996,1771300248793,-915.21,0.00017899,2]
[405778997,1771300248803,-915.21,0.00017899,2]
[405778998,1771300248813,-915.21,0.00017899,2]
[405778999,1771300248823,-915.21,0.00017899,2]
[405779000,1771300248834,-915.2263384,0.00017899,2]
[405779001,1771300248844,-25000.0,0.000179,3]
[405779002,1771300248855,-5008.1800114,0.000179,3]
[405779003,1771300248865,-160.0,0.000179,3]
[405779004,1771300248875,-24864.33084881,0.000179,2]
[405779005,1771300248886,-227.20890354,0.000179,2]
[405779006,1771300248896,-14600.31122172,0.000179,2]
[405779007,1771300248906,-5300.13656815,0.000179,2]
[405779008,1771300248916,-350.0,0.00017905,2]
[405779009,1771300249036,-500.0,0.00017918,2]
[405779010,1771300249046,-500.0,0.00017918,2]
[405779011,1771300249056,-168.0,0.00017918,2]
[405779012,1771300249066,-763.92788936,0.0001799,2]
[405779013,1771300249075,-151.0,0.00017997,2]
[405779014,1771300249085,-209.40437684,0.00017998,4]
[405779015,1771300249095,-217.15233878,0.00017998,4]
[405779016,1771300249105,-297.18074641,0.00017998,4]
[405779017,1771300249115,-578.20924308,0.00017998,4]
[405779018,1771300249125,-599.60298507,0.00017998,4]
[405779019,1771300249135,-621.78829552,0.00017998,4]
[405779020,1771300249145,-415.5066665,0.00017998,4]
[405779021,1771300249155,-200.0,0.00017998,4]
[405779022,1771300249165,-200.0,0.00017998,4]
[405779023,1771300249175,-200.0,0.00017998,4]
[405779024,1771300249185,-200.0,0.00017998,4]
[405779025,1771300249198,-200.0,0.00017998,4]
[405779026,1771300249208,-201.41552809,0.00017998,4]
[405779027,1771300249218,-300.0,0.00017999,2]
[405779028,1771300249227,-300.0,0.00017999,2]
[405779029,1771300249238,-666.0,0.00017999,2]
[405779030,1771300249247,-300.0,0.00017999,2]
[405779031,1771300249257,-666.0,0.00017999,2]
[405779032,1771300249268,-300.0,0.00017999,2]
[405779033,1771300249278,-23598.10797836,0.00017999,2]
[405779034,1771300249287,-7695532.74185453,0.00018,2]
[405779035,1771300249807,-576.55739814,0.00018,2]
[405779036,1771300249983,-395.94537864,0.00018,2]
[405779037,1771300250001,-348.82727361,0.00018,2]
[405779038,1771300250155,1071.90032145,8.999e-05,3]
[405779039,1771300250206,1071.90032145,9.32e-05,3]
[405779040,1771300250249,1071.90032145,8.999e-05,3]
[405779041,1771300250337,1071.90032145,9.878e-05,3]
[405779042,1771300250372,1071.90032145,0.00011473,3]
[405779043,1771300251964,-500.0,8.999e-05,2]
[405779044,1771300251976,-389.15994815,8.999e-05,2]
[405779046,1771300430911,-5362.49853067,8.6e-05,2]
[405779047,1771300430937,-7968.747796,8.6e-05,2]
[405779048,1771300430963,-6665.62316334,8.6e-05,2]
[405779049,1771300430990,-5003.13050999,8.6e-05,2]
[405779050,1771300433070,-4268.74191868,8.6e-05,2]
[405779051,1771300433109,-9271.87242867,8.6e-05,2]
[405779052,1771300433148,-11459.38565265,8.728e-05,2]
[405779053,1771300433919,-25000.0,8.728e-05,2]
[405779054,1771300434652,-25000.0,8.728e-05,2]
[405779055,1771300435362,-25000.0,8.728e-05,2]
[405779056,1771300436166,-25000.0,8.728e-05,2]
[405779057,1771300437189,-25000.0,8.728e-05,2]
[405779058,1771300438105,-25000.0,8.728e-05,2]
[405779059,1771300439015,-25000.0,8.728e-05,2]
[405779060,1771300440094,-25000.0,8.728e-05,2]
[405779061,1771300485929,-300.0,8.727e-05,2]
[405779062,1771300485954,-150.0,8.727e-05,2]
[405779063,1771300485979,-609.52608378,8.728e-05,2]
[405779064,1771300486003,-829.56580145,8.728e-05,2]
[405779065,1771300486029,-23110.90811477,8.728e-05,2]
[405779066,1771300487208,-25000.0,8.728e-05,2]
[405779067,1771300487708,-25000.0,8.728e-05,2]
[405779068,1771300488413,-25000.0,8.728e-05,2]
[405779069,1771300489135,-25000.0,8.728e-05,2]
[405779070,1771300489844,-25000.0,8.728e-05,2]
[405779071,1771300490627,-25000.0,8.728e-05,2]
[405779072,1771300491553,-25000.0,8.728e-05,2]
[405779073,1771300492736,-25000.0,8.728e-05,2]
[405779074,1771300494109,-25000.0,8.728e-05,2]
[405779075,1771300495752,-25000.0,8.728e-05,2]
[405779076,1771300502698,-300.0,8.727e-05,2]
[405779077,1771300502725,-1200.0,8.727e-05,2]
[405779078,1771300502754,-23500.0,8.728e-05,2]
[405779079,1771300518116,1054.37993812,8.727e-05,3]
[405779080,1771300518160,1054.37993812,8.727e-05,3]
[405779081,1771300518237,1054.37993812,8.727e-05,3]
[405779082,1771300518277,1054.37993812,8.727e-05,3]
[405779083,1771300518327,1054.37993812,8.727e-05,3]
[405779084,1771300518385,1054.37993812,8.727e-05,3]
[405779085,1771300537666,225.16240795,8.557e-05,14]
[405779095,1771300742898,150.0,0.00011233,120]
[405779096,1771300754575,387.9,0.000202,120]
[405779097,1771300812209,606.54,8.56e-05,2]
[405779101,1771300970564,-170.42,8.6e-05,2]
[405779102,1771300970592,-255.63,8.6e-05,2]
[405779103,1771300970620,-250.0,8.614e-05,2]
[405779104,1771300970648,-2738.3745982,8.628e-05,2]
[405779105,1771300970709,-3171.1608036,8.628e-05,2]
[405779106,1771300970737,-1157.6883928,8.628e-05,2]
[405779107,1771300970960,-173.54613584,8.628e-05,2]
[405779108,1771300970974,-1168.76547136,8.628e-05,2]
[405779109,1771300970983,-250.0,8.677e-05,2]
[405779110,1771300970993,-522.83535019,8.678e-05,2]
[405779111,1771300971003,-156.2,8.727e-05,2]
[405779112,1771300971012,-402.19917845,8.8e-05,2]
[405779113,1771300972963,-97.80082155,8.8e-05,2]
[405779114,1771300972991,-1200.0,8.807e-05,2]
[405779115,1771300973020,-247.98585,8.808e-05,2]
[405779116,1771300973049,-150.0,8.899e-05,2]
[405779117,1771300973140,-6608.4366569,8.9e-05,2]
[405779118,1771300973172,-3391.5633431,8.9e-05,2]
[405779119,1771300973222,-3216.8833138,8.9e-05,2]
[405779120,1771300976019,-10000.01,8.9e-05,2]
[405779121,1771300976147,-10000.01,8.9e-05,2]
[405779122,1771300988153,3269.687653,7.945e-05,2]
[405779123,1771301110733,150.0,0.000203,120]
[405779124,1771301121256,218.64,8.689e-05,3]
[405779125,1771301122387,500.0,8.5e-05,2]
[405779135,1771301302064,-10000.01,8.7e-05,2]
[405779136,1771301302226,-10000.01,8.7e-05,2]
[405779137,1771301307961,-10000.01,8.7e-05,2]
[405779138,1771301308065,-10000.01,8.7e-05,2]
[405779139,1771301337911,200.0,8.382e-05,2]
[405779140,1771301373018,-1279.256994,8.656e-05,2]
[405779141,1771301373049,-150.0,8.698e-05,2]
[405779142,1771301373079,-500.0,8.699e-05,2]
[405779143,1771301373110,-801.30349177,8.699e-05,2]
[405779144,1771301373140,-801.30349177,8.699e-05,2]
[405779145,1771301373170,-801.30349177,8.699e-05,2]
[405779146,1771301373203,-532.37156961,8.699e-05,2]
[405779147,1771301373435,-118.93192216,8.699e-05,2]
[405779148,1771301382663,-150.0,8.699e-05,2]
[405779149,1771301382695,-801.30349177,8.699e-05,2]
[405779150,1771301382737,-801.30349177,8.699e-05,2]
[405779151,1771301382770,-801.30349177,8.699e-05,2]
[405779152,1771301382803,-801.30349177,8.699e-05,2]
[405779153,1771301382834,-801.30349177,8.699e-05,2]
[405779154,1771301382867,-801.30349177,8.699e-05,2]
[405779155,1771301382997,-84.36809876,8.699e-05,2]
[405779159,1771301432227,-775.90810714,8.698e-05,2]
[405779160,1771301432239,-424.09189286,8.698e-05,2]
[405779161,1771301432249,-300.0,8.698e-05,2]
[405779162,1771301432259,-500.0,8.699e-05,2]
[405779163,1771301432268,-716.93539301,8.699e-05,2]
[405779164,1771301432278,-801.30349177,8.699e-05,2]
[405779165,1771301432287,-801.30349177,8.699e-05,2]
[405779166,1771301432297,-801.30349177,8.699e-05,2]
[405779167,1771301432306,-801.30349177,8.699e-05,2]
[405779168,1771301432316,-801.30349177,8.699e-05,2]
[405779169,1771301432325,-801.30349177,8.699e-05,2]
[405779170,1771301432335,-801.30349177,8.699e-05,2]
[405779171,1771301432345,-801.30349177,8.699e-05,2]
[405779172,1771301432355,-801.30349177,8.699e-05,2]
[405779173,1771301432364,-801.30349177,8.699e-05,2]
[405779174,1771301432374,-801.30349177,8.699e-05,2]
[405779175,1771301432384,-801.30349177,8.699e-05,2]
[405779176,1771301432393,-801.30349177,8.699e-05,2]
[405779177,1771301432403,-801.30349177,8.699e-05,2]
[405779178,1771301432413,-801.30349177,8.699e-05,2]
[405779179,1771301432423,-801.30349177,8.699e-05,2]
[405779180,1771301432433,-801.30349177,8.699e-05,2]
[405779181,1771301432443,-801.30349177,8.699e-05,2]
[405779182,1771301432457,-801.30349177,8.699e-05,2]
[405779183,1771301432467,-801.30349177,8.699e-05,2]
[405779184,1771301432478,-801.30349177,8.699e-05,2]
[405779185,1771301432488,-801.30349177,8.699e-05,2]
[405779186,1771301432498,-801.30349177,8.699e-05,2]
[405779187,1771301432508,-801.30349177,8.699e-05,2]
[405779188,1771301432518,-801.30349177,8.699e-05,2]
[405779189,1771301432528,-801.30349177,8.699e-05,2]
[405779190,1771301432538,-801.30349177,8.699e-05,2]
[405779191,1771301432548,-801.30349177,8.699e-05,2]
[405779192,1771301432562,-801.30349177,8.699e-05,2]
[405779193,1771301432571,-801.30349177,8.699e-05,2]
[405779194,1771301432581,-801.30349177,8.699e-05,2]
[405779195,1771301432594,-801.30349177,8.699e-05,2]
[405779196,1771301432604,-801.30349177,8.699e-05,2]
[405779197,1771301432614,-801.30349177,8.699e-05,2]
[405779198,1771301432625,-801.30349177,8.699e-05,2]
[405779199,1771301432635,-801.30349177,8.699e-05,2]
[405779200,1771301432645,-801.30349177,8.699e-05,2]
[405779201,1771301432655,-801.30349177,8.699e-05,2]
[405779202,1771301432665,-801.30349177,8.699e-05,2]
[405779203,1771301432674,-801.30349177,8.699e-05,2]
[405779204,1771301432683,-801.30349177,8.699e-05,2]
[405779205,1771301432693,-801.30349177,8.699e-05,2]
[405779206,1771301432703,-801.30349177,8.699e-05,2]
[405779207,1771301432712,-801.30349177,8.699e-05,2]
[405779208,1771301432722,-801.30349177,8.699e-05,2]
[405779209,1771301432733,-801.30349177,8.699e-05,2]
[405779210,1771301432743,-801.30349177,8.699e-05,2]
[405779211,1771301432752,-801.30349177,8.699e-05,2]
[405779212,1771301432762,-801.30349177,8.699e-05,2]
[405779213,1771301432778,-801.30349177,8.699e-05,2]
[405779214,1771301432788,-225.39146035,8.699e-05,2]
[405779215,1771301432797,-500.0,8.699e-05,2]
[405779216,1771301432806,-500.0,8.699e-05,2]
[405779217,1771301432816,-531.42769276,8.699e-05,2]
[405779218,1771301432825,-798.44169359,8.699e-05,2]
[405779219,1771301432835,-798.44169359,8.699e-05,2]
[405779220,1771301432847,-798.44169359,8.699e-05,2]
[405779221,1771301432860,-798.44169359,8.699e-05,2]
[405779222,1771301432870,-798.44169359,8.699e-05,2]
[405779223,1771301432879,-798.44169359,8.699e-05,2]
[405779224,1771301432889,-798.44169359,8.699e-05,2]
[405779225,1771301432899,-798.44169359,8.699e-05,2]
[405779226,1771301432909,-798.44169359,8.699e-05,2]
[405779227,1771301432918,-798.44169359,8.699e-05,2]
[405779228,1771301432928,-798.44169359,8.699e-05,2]
[405779229,1771301432937,-798.44169359,8.699e-05,2]
[405779230,1771301432946,-798.44169359,8.699e-05,2]
[405779231,1771301432956,-798.44169359,8.699e-05,2]
[405779232,1771301432965,-798.44169359,8.699e-05,2]
[405779233,1771301432974,-798.44169359,8.699e-05,2]
[405779234,1771301432984,-798.44169359,8.699e-05,2]
[405779235,1771301432994,-83.17040929,8.699e-05,2]
[405779236,1771301433014,-328.0184482,8.699e-05,2]
[405779237,1771301433025,-387.2528361,8.699e-05,2]
[405779238,1771301433034,-88.02144581,8.699e-05,2]
[405779239,1771301433066,-710.42024778,8.699e-05,2]
[405779240,1771301433075,-111.17348943,8.699e-05,2]
[405779241,1771301433087,-687.26820416,8.699e-05,2]
[405779242,1771301433098,-118.57979584,8.699e-05,2]
[405779243,1771301433109,-679.86189775,8.699e-05,2]
[405779244,1771301433119,-798.44169359,8.699e-05,2]
[405779245,1771301433128,-286.37457082,8.699e-05,2]
[405779247,1771301437433,-512.06712277,8.699e-05,2]
[405779248,1771301437443,-110.08607023,8.699e-05,2]
[405779249,1771301437457,-688.35562336,8.699e-05,2]
[405779250,1771301437468,-798.44169359,8.699e-05,2]
[405779251,1771301437480,-798.44169359,8.699e-05,2]
[405779252,1771301437491,-604.60268699,8.699e-05,2]
[405779253,1771301437502,-193.8390066,8.699e-05,2]
[405779254,1771301437513,-1990.66876423,8.699e-05,2]
[405779255,1771301437525,-233.56747917,8.699e-05,2]
[405779256,1771301437538,-812.10322121,8.699e-05,2]
[405779257,1771301437554,-1589.63609423,8.699e-05,2]
[405779258,1771301437566,-1589.63609423,8.699e-05,2]
[405779259,1771301437578,-1584.52792612,8.699e-05,2]
[405779260,1771301437598,-5.10816811,8.699e-05,2]
[405779261,1771301437609,-3459999.96,8.7e-05,2]
[405779262,1771301437619,-10000.0,8.7e-05,2]
[405779263,1771301437630,-2500.0,8.7e-05,2]
[405779264,1771301437642,-227.20890356,8.7e-05,2]
[405779265,1771301437651,-5514.56110274,8.7e-05,2]
[405779266,1771301437661,-788.00311282,8.727e-05,2]
[405779267,1771301437672,-500.0,8.742e-05,2]
[405779268,1771301437683,-250.0,8.77e-05,2]
[405779269,1771301437692,-1000.0,8.899e-05,2]
[405779270,1771301437702,-9633.5567862,8.9e-05,2]
[405779271,1771301437713,-500.0,8.973e-05,2]
[405779272,1771301437727,-244080.67689703,9.092e-05,2]
[405779273,1771301437737,-150.0,9.101e-05,2]
[405779274,1771301437746,-500.0,9.101e-05,2]
[405779275,1771301437757,-500.0,9.101e-05,2]
[405779277,1771301437767,-500.0,9.101e-05,2]
[405779279,1771301437778,-150.0,9.101e-05,2]
[405779280,1771301437788,-500.0,9.101e-05,2]
[405779281,1771301437798,-500.0,9.101e-05,2]
[405779282,1771301437807,-150.0,9.101e-05,2]
[405779283,1771301437819,-500.0,9.101e-05,2]
[405779284,1771301437828,-500.0,9.101e-05,2]
[405779285,1771301437840,-150.0,9.101e-05,2]
[405779286,1771301437851,-150.0,9.101e-05,2]
[405779287,1771301437862,-500.0,9.101e-05,2]
[405779288,1771301437871,-150.0,9.101e-05,2]
[405779289,1771301437883,-195.0,9.143e-05,2]
[405779290,1771301437893,-332.0,9.148e-05,2]
[405779291,1771301437903,-150.0,9.156e-05,2]
[405779292,1771301437913,-500.0,9.156e-05,2]
[405779293,1771301437925,-500.0,9.156e-05,2]
[405779294,1771301437934,-500.0,9.156e-05,2]
[405779295,1771301437946,-150.07216309,9.156e-05,2]
[405779296,1771301437958,-500.0,9.156e-05,2]
[405779297,1771301437969,-500.0,9.156e-05,2]
[405779298,1771301437979,-500.0,9.156e-05,2]
[405779299,1771301437990,-500.0,9.156e-05,2]
[405779300,1771301438001,-500.0,9.156e-05,2]
[405779301,1771301438011,-150.37957529,9.156e-05,2]
[405779302,1771301438020,-500.0,9.211e-05,2]
[405779303,1771301438031,-150.0,9.211e-05,2]
[405779304,1771301438040,-500.0,9.211e-05,2]
[405779305,1771301438052,-500.0,9.211e-05,2]
[405779306,1771301438062,-500.0,9.211e-05,2]
[405779307,1771301438072,-500.0,9.211e-05,2]
[405779308,1771301438082,-500.0,9.211e-05,2]
[405779309,1771301438092,-500.0,9.211e-05,2]
[405779310,1771301438102,-500.0,9.211e-05,2]
[405779311,1771301438112,-223.0,9.224e-05,2]
[405779312,1771301438121,-500.0,9.247e-05,2]
[405779313,1771301438131,-500.0,9.265e-05,2]
[405779314,1771301438140,-150.0,9.265e-05,2]
[405779315,1771301438150,-500.0,9.265e-05,2]
[405779316,1771301438159,-500.0,9.265e-05,2]
[405779317,1771301438169,-505.10095498,9.265e-05,2]
[405779318,1771301438179,-500.0,9.265e-05,2]
[405779319,1771301438188,-500.0,9.265e-05,2]
[405779320,1771301438198,-500.0,9.265e-05,2]
[405779321,1771301438207,-500.0,9.265e-05,2]
[405779322,1771301438221,-1390.0,9.273e-05,2]
[405779323,1771301438245,-9999.99,9.273e-05,2]
[405779324,1771301438256,-150.99,9.273e-05,2]
[405779325,1771301438266,-299.99,9.273e-05,2]
[405779326,1771301438277,-598.0,9.277e-05,2]
[405779327,1771301438287,-1203.0,9.295e-05,2]
[405779328,1771301438298,-500.0,9.32e-05,2]
[405779329,1771301438308,-250.53819001,9.32e-05,2]
[405779330,1771301438319,-500.0,9.32e-05,2]
[405779331,1771301438329,-510.76125773,9.32e-05,2]
[405779332,1771301438340,-500.0,9.32e-05,2]
[405779333,1771301438354,-500.0,9.32e-05,2]
[405779334,1771301438365,-500.0,9.32e-05,2]
[405779335,1771301438375,-500.0,9.32e-05,2]
[405779336,1771301438386,-150.0,9.321e-05,2]
[405779337,1771301438396,-214.0121963,9.321e-05,2]
[405779338,1771301438407,-150.0,9.321e-05,2]
[405779339,1771301438418,-458.0,9.321e-05,2]
[405779340,1771301438428,-799.0,9.321e-05,2]
[405779341,1771301438438,-3866.0,9.321e-05,2]
[405779342,1771301438449,-153.2248447,9.375e-05,2]
[405779343,1771301438459,-500.0,9.375e-05,2]
[405779344,1771301438469,-500.0,9.375e-05,2]
[405779345,1771301438479,-500.0,9.375e-05,2]
[405779346,1771301438489,-500.0,9.375e-05,2]
[405779347,1771301438500,-500.0,9.375e-05,2]
[405779348,1771301438510,-500.0,9.375e-05,2]
[405779349,1771301438519,-500.0,9.375e-05,2]
[405779350,1771301438529,-500.0,9.375e-05,2]
[405779351,1771301438539,-500.0,9.375e-05,2]
[405779352,1771301438552,-500.0,9.375e-05,2]
[405779353,1771301438562,-500.0,9.375e-05,2]
[405779354,1771301438571,-500.0,9.375e-05,2]
[405779355,1771301438581,-500.0,9.375e-05,2]
[405779356,1771301438596,-150.0,9.375e-05,2]
[405779357,1771301438607,-500.0,9.375e-05,2]
[405779358,1771301438616,-150.0,9.375e-05,2]
[405779359,1771301438629,-554.0,9.375e-05,2]
[405779360,1771301438639,-500.0,9.375e-05,2]
[405779361,1771301438649,-500.0,9.375e-05,2]
[405779362,1771301438659,-500.0,9.375e-05,2]
[405779363,1771301438670,-150.0,9.375e-05,2]
[405779364,1771301438680,-150.0,9.375e-05,2]
[405779365,1771301438690,-150.0,9.375e-05,2]
[405779366,1771301438700,-150.0,9.375e-05,2]
[405779367,1771301438709,-500.0,9.375e-05,2]
[405779368,1771301438719,-500.0,9.375e-05,2]
[405779369,1771301438730,-150.0,9.375e-05,2]
[405779370,1771301438740,-500.0,9.375e-05,2]
[405779371,1771301438750,-237.28842339,9.375e-05,2]
[405779372,1771301438760,-500.0,9.375e-05,2]
[405779373,1771301438769,-4513.72,9.375e-05,2]
[405779374,1771301438779,-999.99,9.375e-05,2]
[405779375,1771301438789,-96057.45,9.375e-05,2]
[405779376,1771301438800,-9999.99,9.375e-05,2]
[405779377,1771301438810,-150.0,9.376e-05,2]
[405779378,1771301438820,-150.0,9.376e-05,2]
[405779379,1771301438830,-458.0,9.376e-05,2]
[405779380,1771301438840,-799.0,9.376e-05,2]
[405779381,1771301438851,-3866.0,9.376e-05,2]
[405779382,1771301438861,-308.0,9.416e-05,2]
[405779383,1771301438871,-500.0,9.43e-05,2]
[405779384,1771301438882,-500.0,9.43e-05,2]
[405779385,1771301438892,-471.12228144,9.43e-05,2]
[405779386,1771301438902,-500.0,9.43e-05,2]
[405779387,1771301438912,-500.0,9.43e-05,2]
[405779388,1771301438921,-500.0,9.43e-05,2]
[405779389,1771301438931,-500.0,9.43e-05,2]
[405779390,1771301438941,-500.0,9.43e-05,2]
[405779391,1771301438956,-500.0,9.43e-05,2]
[405779392,1771301438967,-500.0,9.43e-05,2]
[405779393,1771301438977,-500.0,9.43e-05,2]
[405779394,1771301438987,-500.0,9.43e-05,2]
[405779395,1771301438997,-500.0,9.43e-05,2]
[405779396,1771301439007,-150.0,9.43e-05,2]
[405779397,1771301439017,-500.0,9.43e-05,2]
[405779398,1771301439027,-150.0,9.43e-05,2]
[405779399,1771301439037,-554.0,9.43e-05,2]
[405779400,1771301439047,-500.0,9.43e-05,2]
[405779401,1771301439058,-500.0,9.43e-05,2]
[405779402,1771301439068,-500.0,9.43e-05,2]
[405779403,1771301439079,-244.28993987,9.43e-05,2]
[405779404,1771301439089,-150.0,9.43e-05,2]
[405779405,1771301439100,-150.0,9.43e-05,2]
[405779406,1771301439110,-150.0,9.43e-05,2]
[405779407,1771301439120,-649.65624143,9.43e-05,2]
[405779408,1771301439130,-500.0,9.43e-05,2]
[405779409,1771301439141,-205.12968692,9.43e-05,2]
[405779410,1771301439151,-500.0,9.43e-05,2]
[405779411,1771301439161,-500.0,9.43e-05,2]
[405779412,1771301439171,-200.0,9.431e-05,2]
[405779413,1771301439181,-150.0,9.431e-05,2]
[405779414,1771301439192,-458.0,9.431e-05,2]
[405779415,1771301439202,-799.0,9.431e-05,2]
[405779416,1771301439211,-3866.0,9.431e-05,2]
[405779417,1771301439222,-500.0,9.485e-05,2]
[405779418,1771301439233,-500.0,9.485e-05,2]
[405779419,1771301439243,-500.0,9.485e-05,2]
[405779420,1771301439254,-500.0,9.485e-05,2]
[405779421,1771301439264,-329.95129651,9.485e-05,2]
[405779422,1771301439274,-500.0,9.485e-05,2]
[405779423,1771301439284,-500.0,9.485e-05,2]
[405779424,1771301439294,-500.0,9.485e-05,2]
[405779425,1771301439308,-500.0,9.485e-05,2]
[405779426,1771301439318,-154.49885719,9.485e-05,2]
[405779427,1771301439328,-500.0,9.485e-05,2]
[405779428,1771301439338,-500.0,9.485e-05,2]
[405779429,1771301439351,-242.84628954,9.485e-05,2]
[405779430,1771301439362,-500.0,9.485e-05,2]
[405779431,1771301439372,-150.0,9.485e-05,2]
[405779432,1771301439382,-554.0,9.485e-05,2]
[405779433,1771301439392,-500.0,9.485e-05,2]
[405779434,1771301439403,-152.12850518,9.485e-05,2]
[405779435,1771301439413,-500.0,9.485e-05,2]
[405779436,1771301439423,-150.0,9.485e-05,2]
[405779437,1771301439434,-200.36674187,9.485e-05,2]
[405779438,1771301439445,-200.18645604,9.485e-05,2]
[405779439,1771301439454,-500.0,9.485e-05,2]
[405779440,1771301439464,-220.15883999,9.485e-05,2]